fUSD/lending_fUSD_20250211
["ID","MTS","AMOUNT","RATE_DAILY","PERIOD"]
[352736415,1739283074923,-500.0,0.00011506,2]
[352736416,1739283074933,-1291.73,0.00011506,2]
[352736417,1739283074943,-500.0,0.00011506,2]
[352736418,1739283074952,-500.0,0.00011506,2]
[352736419,1739283074962,-500.0,0.00011506,2]
[352736420,1739283074972,-500.0,0.00011506,2]
[352736421,1739283074981,-500.0,0.00011506,2]
[352736422,1739283074991,-1006.21,0.00011506,2]
[352736423,1739283075001,-500.0,0.00011506,2]
[352736424,1739283075012,-500.0,0.00011506,2]
[352736425,1739283075021,-654.08,0.00011506,2]
[352736426,1739283075031,-500.0,0.00011506,2]
[352736427,1739283075041,-500.0,0.00011506,2]
[352736428,1739283075052,-500.0,0.00011506,2]
[352736429,1739283075062,-500.0,0.00011506,2]
[352736430,1739283075072,-500.0,0.00011506,2]
[352736431,1739283075082,-500.0,0.00011506,2]
[352736432,1739283075091,-648.91,0.00011506,2]
[352736433,1739283075101,-500.0,0.00011506,2]
[352736434,1739283075111,-829.91,0.00011506,2]
[352736435,1739283075120,-500.0,0.00011506,2]
[352736436,1739283075129,-500.0,0.00011506,2]
[352736437,1739283075139,-500.0,0.00011506,2]
[352736438,1739283075148,-1283.05,0.00011506,2]
[352736439,1739283075158,-500.0,0.00011506,2]
[352736440,1739283075167,-500.0,0.00011506,2]
[352736441,1739283075177,-500.0,0.00011506,2]
[352736442,1739283075187,-500.0,0.00011506,2]
[352736443,1739283075197,-500.0,0.00011506,2]
[352736444,1739283075207,-500.0,0.00011506,2]
[352736445,1739283075216,-500.0,0.00011506,2]
[352736446,1739283075227,-627.22,0.00011506,2]
[352736447,1739283075236,-784.62,0.00011506,2]
[352736448,1739283075246,-500.0,0.00011506,2]
[352736449,1739283075255,-500.0,0.00011506,2]
[352736450,1739283075265,-503.60215071,0.00011506,2]
[352736451,1739283075274,-500.0,0.00011506,2]
[352736452,1739283075283,-500.0,0.00011506,2]
[352736453,1739283075292,-500.0,0.00011506,2]
[352736454,1739283075305,-500.0,0.00011506,2]
[352736455,1739283075314,-500.0,0.00011506,2]
[352736456,1739283075323,-500.0,0.00011506,2]
[352736457,1739283075332,-500.0,0.00011506,2]
[352736458,1739283075341,-1049.93,0.00011506,2]
[352736459,1739283075350,-500.0,0.00011506,2]
[352736460,1739283075360,-656.24,0.00011506,2]
[352736461,1739283075369,-500.0,0.00011506,2]
[352736462,1739283075379,-500.0,0.00011506,2]
[352736463,1739283075388,-717.49,0.00011506,2]
[352736464,1739283075397,-750.73,0.00011506,2]
[352736465,1739283075407,-173.36467085,0.00011506,2]
[352736466,1739283075416,-899.58,0.00011506,2]
[352736467,1739283075425,-506.74647439,0.00011506,2]
[352736468,1739283075435,-500.0,0.00011506,2]
[352736469,1739283075444,-951.35,0.00011506,2]
[352736470,1739283075453,-500.0,0.00011506,2]
[352736471,1739283075462,-1059.29,0.00011506,2]
[352736472,1739283075472,-500.0,0.00011506,2]
[352736473,1739283075481,-1079.43,0.00011506,2]
[352736474,1739283075490,-771.17,0.00011506,2]
[352736475,1739283075500,-500.0,0.00011506,2]
[352736476,1739283075509,-500.0,0.00011506,2]
[352736477,1739283075518,-500.0,0.00011506,2]
[352736478,1739283075527,-500.0,0.00011506,2]
[352736479,1739283075537,-500.0,0.00011506,2]
[352736480,1739283075547,-621.59,0.00011506,2]
[352736481,1739283075558,-500.0,0.00011506,2]
[352736482,1739283075567,-500.0,0.00011506,2]
[352736483,1739283075576,-500.0,0.00011506,2]
[352736484,1739283075586,-500.0,0.00011506,2]
[352736485,1739283075595,-500.0,0.00011506,2]
[352736486,1739283075605,-500.0,0.00011506,2]
[352736487,1739283075615,-500.0,0.00011506,2]
[352736488,1739283075627,-500.0,0.00011506,2]
[352736489,1739283075637,-772.38,0.00011506,2]
[352736490,1739283075646,-637.38,0.00011506,2]
[352736491,1739283075655,-500.0,0.00011506,2]
[352736492,1739283075666,-564.18,0.00011506,2]
[352736493,1739283075675,-500.0,0.00011506,2]
[352736494,1739283075684,-478.08234217,0.00011506,2]
[352736495,1739283075693,-500.0,0.00011506,2]
[352736496,1739283075702,-562.5,0.00011506,2]
[352736497,1739283075712,-726.26,0.00011506,2]
[352736498,1739283075722,-500.0,0.00011506,2]
[352736499,1739283075731,-500.0,0.00011506,2]
[352736500,1739283075740,-504.18252283,0.00011506,2]
[352736501,1739283075750,-500.0,0.00011506,2]
[352736502,1739283075759,-500.0,0.00011506,2]
[352736503,1739283075768,-500.0,0.00011506,2]
[352736504,1739283075778,-500.0,0.00011506,2]
[352736505,1739283075787,-229.48210442,0.00011506,2]
[352736506,1739283075796,-657.71,0.00011506,2]
[352736507,1739283075806,-500.0,0.00011506,2]
[352736508,1739283075816,-545.49,0.00011506,2]
[352736509,1739283075825,-947.55,0.00011506,2]
[352736510,1739283075834,-500.0,0.00011506,2]
[352736511,1739283075844,-500.0,0.00011506,2]
[352736512,1739283075854,-500.0,0.00011506,2]
[352736513,1739283075863,-500.0,0.00011506,2]
[352736514,1739283075873,-500.0,0.00011506,2]
[352736515,1739283075882,-500.0,0.00011506,2]
[352736516,1739283075892,-500.0,0.00011506,2]
[352736517,1739283075901,-500.0,0.00011506,2]
[352736518,1739283075911,-500.0,0.00011506,2]
[352736519,1739283075920,-500.0,0.00011506,2]
[352736520,1739283075930,-500.0,0.00011506,2]
[352736521,1739283075939,-791.02,0.00011506,2]
[352736522,1739283075948,-594.78,0.00011506,2]
[352736523,1739283075958,-500.0,0.00011506,2]
[352736524,1739283075967,-899.13,0.00011506,2]
[352736525,1739283075976,-500.0,0.00011506,2]
[352736526,1739283075985,-723.56,0.00011506,2]
[352736527,1739283075995,-500.0,0.00011506,2]
[352736528,1739283076005,-623.3,0.00011506,2]
[352736529,1739283076015,-500.0,0.00011506,2]
[352736530,1739283076024,-500.0,0.00011506,2]
[352736531,1739283076033,-500.0,0.00011506,2]
[352736532,1739283076043,-602.04,0.00011506,2]
[352736533,1739283076053,-500.0,0.00011506,2]
[352736534,1739283076063,-634.43,0.00011506,2]
[352736535,1739283076072,-500.0,0.00011506,2]
[352736536,1739283076082,-689.47,0.00011506,2]
[352736537,1739283076091,-500.0,0.00011506,2]
[352736538,1739283076100,-500.0,0.00011506,2]
[352736539,1739283076110,-500.0,0.00011506,2]
[352736540,1739283076120,-500.0,0.00011506,2]
[352736541,1739283076129,-500.0,0.00011506,2]
[352736542,1739283076138,-316.7150687,0.00011506,2]
[352736543,1739283076147,-500.0,0.00011506,2]
[352736544,1739283076157,-999.07,0.00011506,2]
[352736545,1739283076167,-500.0,0.00011506,2]
[352736546,1739283076176,-961.83,0.00011506,2]
[352736547,1739283076185,-500.0,0.00011506,2]
[352736548,1739283076195,-932.98,0.00011506,2]
[352736549,1739283076204,-500.0,0.00011506,2]
[352736550,1739283076213,-500.0,0.00011506,2]
[352736551,1739283076222,-662.81,0.00011506,2]
[352736552,1739283076231,-235.67759781,0.00011506,2]
[352736553,1739283076241,-376.4,0.00011506,2]
[352736554,1739283076250,-541.66,0.00011506,2]
[352736555,1739283076259,-722.67,0.00011506,2]
[352736556,1739283076268,-500.0,0.00011506,2]
[352736557,1739283076277,-500.0,0.00011506,2]
[352736558,1739283076286,-500.0,0.00011506,2]
[352736559,1739283076295,-500.0,0.00011506,2]
[352736560,1739283076306,-503.34238413,0.00011506,2]
[352736561,1739283076315,-500.0,0.00011506,2]
[352736562,1739283076324,-1030.45,0.00011506,2]
[352736563,1739283076333,-500.0,0.00011506,2]
[352736564,1739283076342,-500.0,0.00011506,2]
[352736565,1739283076352,-500.0,0.00011506,2]
[352736566,1739283076362,-835.87,0.00011506,2]
[352736567,1739283076371,-750.85,0.00011506,2]
[352736568,1739283076380,-500.0,0.00011506,2]
[352736569,1739283076390,-500.0,0.00011506,2]
[352736570,1739283076399,-500.0,0.00011506,2]
[352736571,1739283076409,-500.0,0.00011506,2]
[352736572,1739283076418,-500.0,0.00011506,2]
[352736573,1739283076427,-500.0,0.00011506,2]
[352736574,1739283076570,-500.0,0.00011506,2]
[352736575,1739283076581,-500.0,0.00011506,2]
[352736576,1739283076591,-500.0,0.00011506,2]
[352736577,1739283076601,-500.0,0.00011506,2]
[352736578,1739283076610,-500.0,0.00011506,2]
[352736579,1739283076619,-500.0,0.00011506,2]
[352736580,1739283076631,-500.0,0.00011506,2]
[352736581,1739283076640,-500.0,0.00011506,2]
[352736582,1739283076649,-1038.04,0.00011506,2]
[352736583,1739283076659,-655.85,0.00011506,2]
[352736584,1739283076669,-500.0,0.00011506,2]
[352736585,1739283076678,-500.0,0.00011506,2]
[352736586,1739283076687,-500.0,0.00011506,2]
[352736587,1739283076696,-500.0,0.00011506,2]
[352736588,1739283076706,-626.7,0.00011506,2]
[352736589,1739283076716,-500.0,0.00011506,2]
[352736590,1739283076725,-500.0,0.00011506,2]
[352736591,1739283076734,-581.18,0.00011506,2]
[352736592,1739283076743,-650.34,0.00011506,2]
[352736593,1739283076752,-500.0,0.00011506,2]
[352736594,1739283076762,-500.0,0.00011506,2]
[352736595,1739283076770,-304.01166275,0.00011506,2]
[352736596,1739283076779,-557.62,0.00011506,2]
[352736597,1739283076788,-500.0,0.00011506,2]
[352736598,1739283076800,-1181.79,0.00011506,2]
[352736599,1739283076809,-552.27,0.00011506,2]
[352736600,1739283076818,-982.11,0.00011506,2]
[352736601,1739283076827,-584.08131352,0.00011506,2]
[352736602,1739283076836,-637.32,0.00011506,2]
[352736603,1739283076845,-500.0,0.00011506,2]
[352736604,1739283076854,-500.0,0.00011506,2]
[352736605,1739283076864,-500.0,0.00011506,2]
[352736606,1739283076873,-500.0,0.00011506,2]
[352736607,1739283076882,-500.0,0.00011506,2]
[352736608,1739283076892,-621.63,0.00011506,2]
[352736609,1739283076901,-720.74,0.00011506,2]
[352736610,1739283076910,-500.0,0.00011506,2]
[352736611,1739283076920,-756.12,0.00011506,2]
[352736612,1739283076929,-500.0,0.00011506,2]
[352736613,1739283076938,-500.0,0.00011506,2]
[352736614,1739283076947,-540.21,0.00011506,2]
[352736615,1739283076956,-500.0,0.00011506,2]
[352736616,1739283076966,-607.84,0.00011506,2]
[352736617,1739283076975,-500.0,0.00011506,2]
[352736618,1739283076984,-500.0,0.00011506,2]
[352736619,1739283076993,-500.0,0.00011506,2]
[352736620,1739283077002,-1099.61,0.00011506,2]
[352736621,1739283077012,-543.05,0.00011506,2]
[352736622,1739283077021,-735.96,0.00011506,2]
[352736623,1739283077030,-1136.7,0.00011506,2]
[352736624,1739283077039,-500.0,0.00011506,2]
[352736625,1739283077050,-500.0,0.00011506,2]
[352736626,1739283077060,-500.0,0.00011506,2]
[352736627,1739283077069,-500.0,0.00011506,2]
[352736628,1739283077078,-500.0,0.00011506,2]
[352736629,1739283077087,-875.16,0.00011506,2]
[352736630,1739283077097,-500.0,0.00011506,2]
[352736631,1739283077106,-504.10851657,0.00011506,2]
[352736632,1739283077116,-580.72,0.00011506,2]
[352736633,1739283077126,-500.0,0.00011506,2]
[352736634,1739283077136,-500.0,0.00011506,2]
[352736635,1739283077146,-500.0,0.00011506,2]
[352736636,1739283077156,-1187.47,0.00011506,2]
[352736637,1739283077166,-1053.93,0.00011506,2]
[352736638,1739283077176,-635.88,0.00011506,2]
[352736639,1739283077186,-1017.56,0.00011506,2]
[352736640,1739283077196,-683.09,0.00011506,2]
[352736641,1739283077206,-1174.81,0.00011506,2]
[352736642,1739283077215,-500.0,0.00011506,2]
[352736643,1739283077224,-500.0,0.00011506,2]
[352736644,1739283077234,-500.0,0.00011506,2]
[352736645,1739283077244,-641.21,0.00011506,2]
[352736646,1739283077253,-515.4,0.00011506,2]
[352736647,1739283077263,-503.45999476,0.00011506,2]
[352736648,1739283077273,-811.4,0.00011506,2]
[352736649,1739283077282,-500.0,0.00011506,2]
[352736650,1739283077291,-500.0,0.00011506,2]
[352736651,1739283077305,-2279.79,0.00011506,2]
[352736652,1739283077315,-500.0,0.00011506,2]
[352736653,1739283077325,-500.0,0.00011506,2]
[352736654,1739283077335,-500.0,0.00011506,2]
[352736655,1739283077344,-1026.36,0.00011506,2]
[352736656,1739283077354,-529.36,0.00011506,2]
[352736657,1739283077363,-500.0,0.00011506,2]
[352736658,1739283077373,-500.0,0.00011506,2]
[352736659,1739283077383,-544.63,0.00011506,2]
[352736660,1739283077392,-1181.86,0.00011506,2]
[352736661,1739283077402,-500.0,0.00011506,2]
[352736662,1739283077411,-500.0,0.00011506,2]
[352736663,1739283077421,-678.67,0.00011506,2]
[352736664,1739283077430,-500.0,0.00011506,2]
[352736665,1739283077441,-501.88333216,0.00011506,2]
[352736666,1739283077451,-500.0,0.00011506,2]
[352736667,1739283077461,-500.0,0.00011506,2]
[352736668,1739283077472,-1235.55,0.00011506,2]
[352736669,1739283077481,-2015.94,0.00011506,2]
[352736670,1739283077491,-500.0,0.00011506,2]
[352736671,1739283077501,-500.0,0.00011506,2]
[352736672,1739283077511,-500.0,0.00011506,2]
[352736673,1739283077520,-638.72,0.00011506,2]
[352736674,1739283077529,-500.0,0.00011506,2]
[352736675,1739283077539,-500.0,0.00011506,2]
[352736676,1739283077551,-500.0,0.00011506,2]
[352736677,1739283077560,-500.0,0.00011506,2]
[352736678,1739283077569,-884.07,0.00011506,2]
[352736679,1739283077579,-1344.05,0.00011506,2]
[352736680,1739283077588,-500.0,0.00011506,2]
[352736681,1739283077598,-500.0,0.00011506,2]
[352736682,1739283077607,-1667.76,0.00011506,2]
[352736683,1739283077621,-500.0,0.00011506,2]
[352736684,1739283077630,-515.7,0.00011506,2]
[352736685,1739283077640,-522.2,0.00011506,2]
[352736686,1739283077649,-500.0,0.00011506,2]
[352736687,1739283077659,-1113.72,0.00011506,2]
[352736688,1739283077669,-757.59,0.00011506,2]
[352736689,1739283077678,-500.0,0.00011506,2]
[352736690,1739283077687,-1179.03,0.00011506,2]
[352736691,1739283077697,-808.33,0.00011506,2]
[352736692,1739283077706,-1282.85,0.00011506,2]
[352736693,1739283077716,-500.0,0.00011506,2]
[352736694,1739283077725,-1795.37,0.00011506,2]
[352736695,1739283077734,-1850.76,0.00011506,2]
[352736696,1739283077744,-603.62,0.00011506,2]
[352736697,1739283077753,-500.0,0.00011506,2]
[352736698,1739283077762,-500.0,0.00011506,2]
[352736699,1739283077772,-505.17239673,0.00011506,2]
[352736700,1739283077781,-500.0,0.00011506,2]
[352736701,1739283077791,-1151.05,0.00011506,2]
[352736702,1739283077801,-1119.24,0.00011506,2]
[352736703,1739283077811,-500.0,0.00011506,2]
[352736704,1739283077821,-1347.78,0.00011506,2]
[352736705,1739283077830,-500.0,0.00011506,2]
[352736706,1739283077841,-819.33,0.00011506,2]
[352736707,1739283077850,-1536.44,0.00011506,2]
[352736708,1739283077861,-500.0,0.00011506,2]
[352736709,1739283077871,-892.03,0.00011506,2]
[352736710,1739283077881,-500.0,0.00011506,2]
[352736711,1739283077891,-572.05270884,0.00011506,2]
[352736712,1739283077900,-2017.38,0.00011506,2]
[352736713,1739283077909,-948.75,0.00011506,2]
[352736714,1739283077919,-500.0,0.00011506,2]
[352736715,1739283077928,-526.05,0.00011506,2]
[352736716,1739283077938,-582.46,0.00011506,2]
[352736717,1739283077947,-683.75,0.00011506,2]
[352736718,1739283077957,-657.71,0.00011506,2]
[352736719,1739283077967,-500.0,0.00011506,2]
[352736720,1739283077976,-2105.16,0.00011506,2]
[352736721,1739283077986,-1725.88,0.00011506,2]
[352736722,1739283077996,-500.0,0.00011506,2]
[352736723,1739283078005,-500.0,0.00011506,2]
[352736724,1739283078016,-500.0,0.00011506,2]
[352736725,1739283078026,-634.23,0.00011506,2]
[352736726,1739283078035,-599.07,0.00011506,2]
[352736727,1739283078044,-1375.79,0.00011506,2]
[352736728,1739283078056,-500.0,0.00011506,2]
[352736729,1739283078066,-582.27,0.00011506,2]
[352736730,1739283078076,-1848.33,0.00011506,2]
[352736731,1739283078086,-500.0,0.00011506,2]
[352736732,1739283078096,-853.65,0.00011506,2]
[352736733,1739283078106,-500.0,0.00011506,2]
[352736734,1739283078116,-1602.84,0.00011506,2]
[352736735,1739283078126,-1126.45,0.00011506,2]
[352736736,1739283078136,-500.0,0.00011506,2]
[352736737,1739283078146,-522.30926193,0.00011506,2]
[352736738,1739283078155,-1623.28,0.00011506,2]
[352736739,1739283078165,-1955.0,0.00011506,2]
[352736740,1739283078174,-1095.96,0.00011506,2]
[352736741,1739283078183,-1427.46,0.00011506,2]
[352736742,1739283078193,-733.7,0.00011506,2]
[352736743,1739283078202,-500.0,0.00011506,2]
[352736744,1739283078211,-507.93,0.00011506,2]
[352736745,1739283078221,-636.24,0.00011506,2]
[352736746,1739283078231,-1892.51,0.00011506,2]
[352736747,1739283078240,-500.0,0.00011506,2]
[352736748,1739283078249,-1207.29,0.00011506,2]
[352736749,1739283078259,-1791.03,0.00011506,2]
[352736750,1739283078268,-1757.72,0.00011506,2]
[352736751,1739283078277,-500.0,0.00011506,2]
[352736752,1739283078287,-500.0,0.00011506,2]
[352736753,1739283078296,-1102.03,0.00011506,2]
[352736754,1739283078307,-500.0,0.00011506,2]
[352736755,1739283078317,-151.0,0.00011506,2]
[352736756,1739283078326,-2171.34,0.00011506,2]
[352736757,1739283078336,-713.64,0.00011506,2]
[352736758,1739283078345,-500.0,0.00011506,2]
[352736759,1739283078355,-4488.97,0.00011506,2]
[352736760,1739283078364,-1078.79,0.00011506,2]
[352736761,1739283078373,-507.115357,0.00011506,2]
[352736762,1739283078382,-1189.98,0.00011506,2]
[352736763,1739283078392,-2231.76,0.00011506,2]
[352736764,1739283078401,-3213.91,0.00011506,2]
[352736765,1739283078410,-500.0,0.00011506,2]
[352736766,1739283078419,-1985.57,0.00011506,2]
[352736767,1739283078427,-500.0,0.00011506,2]
[352736768,1739283078436,-500.0,0.00011506,2]
[352736769,1739283078446,-2233.07,0.00011506,2]
[352736770,1739283078455,-2042.81,0.00011506,2]
[352736771,1739283078464,-500.0,0.00011506,2]
[352736772,1739283078473,-1475.61,0.00011506,2]
[352736773,1739283078483,-500.0,0.00011506,2]
[352736774,1739283078493,-500.0,0.00011506,2]
[352736775,1739283078503,-810.69,0.00011506,2]
[352736776,1739283078512,-500.0,0.00011506,2]
[352736777,1739283078521,-500.0,0.00011506,2]
[352736778,1739283078530,-2371.13,0.00011506,2]
[352736779,1739283078539,-700.09,0.00011506,2]
[352736780,1739283078549,-1214.76,0.00011506,2]
[352736781,1739283078559,-2171.63,0.00011506,2]
[352736782,1739283078569,-2387.02,0.00011506,2]
[352736783,1739283078578,-620.08,0.00011506,2]
[352736784,1739283078587,-500.0,0.00011506,2]
[352736785,1739283078597,-2310.94,0.00011506,2]
[352736786,1739283078607,-2340.95,0.00011506,2]
[352736787,1739283078617,-500.0,0.00011506,2]
[352736788,1739283078630,-1886.51,0.00011506,2]
[352736789,1739283078639,-5444.75,0.00011506,2]
[352736790,1739283078648,-2886.17,0.00011506,2]
[352736791,1739283078658,-500.0,0.00011506,2]
[352736792,1739283078668,-727.8,0.00011506,2]
[352736793,1739283078677,-707.04,0.00011506,2]
[352736794,1739283078687,-2343.44,0.00011506,2]
[352736795,1739283078696,-500.0,0.00011506,2]
[352736796,1739283078708,-500.0,0.00011506,2]
[352736797,1739283078718,-937.33,0.00011506,2]
[352736798,1739283078727,-1158.26,0.00011506,2]
[352736799,1739283078736,-500.0,0.00011506,2]
[352736800,1739283078745,-670.35,0.00011506,2]
[352736801,1739283078755,-500.0,0.00011506,2]
[352736802,1739283078764,-2558.39,0.00011506,2]
[352736803,1739283078773,-620.78,0.00011506,2]
[352736804,1739283078783,-2007.68,0.00011506,2]
[352736805,1739283078792,-2648.76,0.00011506,2]
[352736806,1739283078803,-2171.75,0.00011506,2]
[352736807,1739283078812,-2434.45,0.00011506,2]
[352736808,1739283078821,-731.57,0.00011506,2]
[352736809,1739283078831,-2583.49,0.00011506,2]
[352736810,1739283078981,-2031.5,0.00011506,2]
[352736811,1739283078991,-500.0,0.00011506,2]
[352736812,1739283079002,-151.0,0.00011506,2]
[352736813,1739283079013,-3062.38,0.00011506,2]
[352736814,1739283079023,-500.0,0.00011506,2]
[352736815,1739283079034,-1845.16,0.00011506,2]
[352736816,1739283079044,-3061.99,0.00011506,2]
[352736817,1739283079055,-2068.15,0.00011506,2]
[352736818,1739283079065,-151.0,0.00011506,2]
[352736819,1739283079075,-1009.34,0.00011506,2]
[352736820,1739283079084,-2900.54,0.00011506,2]
[352736821,1739283079095,-500.0,0.00011506,2]
[352736822,1739283079104,-2626.43,0.00011506,2]
[352736823,1739283079115,-500.0,0.00011506,2]
[352736824,1739283079125,-2213.47,0.00011506,2]
[352736825,1739283079134,-500.0,0.00011506,2]
[352736826,1739283079144,-1085.29,0.00011506,2]
[352736827,1739283079153,-2309.34,0.00011506,2]
[352736828,1739283079163,-7282.99,0.00011506,2]
[352736829,1739283079173,-1952.41,0.00011506,2]
[352736830,1739283079182,-701.48,0.00011506,2]
[352736831,1739283079191,-1931.94,0.00011506,2]
[352736832,1739283079201,-500.0,0.00011506,2]
[352736833,1739283079210,-500.0,0.00011506,2]
[352736834,1739283079219,-500.0,0.00011506,2]
[352736835,1739283079229,-5326.26,0.00011506,2]
[352736836,1739283079238,-500.0,0.00011506,2]
[352736837,1739283079247,-3327.15,0.00011506,2]
[352736838,1739283079257,-1259.82,0.00011506,2]
[352736839,1739283079266,-500.0,0.00011506,2]
[352736840,1739283079275,-667.96,0.00011506,2]
[352736841,1739283079285,-500.0,0.00011506,2]
[352736842,1739283079294,-3450.17,0.00011506,2]
[352736843,1739283079304,-500.0,0.00011506,2]
[352736844,1739283079314,-1704.66,0.00011506,2]
[352736845,1739283079323,-500.0,0.00011506,2]
[352736846,1739283079333,-500.0,0.00011506,2]
[352736847,1739283079343,-2127.38,0.00011506,2]
[352736848,1739283079352,-500.0,0.00011506,2]
[352736849,1739283079361,-500.0,0.00011506,2]
[352736850,1739283079371,-500.0,0.00011506,2]
[352736851,1739283079381,-1476.79,0.00011506,2]
[352736852,1739283079390,-1839.16,0.00011506,2]
[352736853,1739283079399,-889.84,0.00011506,2]
[352736854,1739283079408,-2565.16,0.00011506,2]
[352736855,1739283079418,-500.0,0.00011506,2]
[352736856,1739283079427,-2467.78,0.00011506,2]
[352736857,1739283079436,-500.0,0.00011506,2]
[352736858,1739283079445,-1657.8,0.00011506,2]
[352736859,1739283079455,-683.49,0.00011506,2]
[352736860,1739283079464,-500.0,0.00011506,2]
[352736861,1739283079473,-500.0,0.00011506,2]
[352736862,1739283079483,-1036.17,0.00011506,2]
[352736863,1739283079493,-2953.99,0.00011506,2]
[352736864,1739283079503,-500.0,0.00011506,2]
[352736865,1739283079512,-150.0,0.00011506,2]
[352736866,1739283079522,-500.0,0.00011506,2]
[352736867,1739283079531,-2380.39,0.00011506,2]
[352736868,1739283079541,-1433.77,0.00011506,2]
[352736869,1739283079553,-1071.62,0.00011506,2]
[352736870,1739283079563,-1274.15,0.00011506,2]
[352736871,1739283079572,-500.0,0.00011506,2]
[352736872,1739283079582,-855.01,0.00011506,2]
[352736873,1739283079591,-1027.27,0.00011506,2]
[352736874,1739283079600,-1366.0,0.00011506,2]
[352736875,1739283079610,-1213.71,0.00011506,2]
[352736876,1739283079620,-500.0,0.00011506,2]
[352736877,1739283079632,-500.0,0.00011506,2]
[352736878,1739283079641,-500.0,0.00011506,2]
[352736879,1739283079650,-2875.82,0.00011506,2]
[352736880,1739283079660,-727.11,0.00011506,2]
[352736881,1739283079672,-500.0,0.00011506,2]
[352736882,1739283079682,-713.14,0.00011506,2]
[352736883,1739283079692,-1743.04,0.00011506,2]
[352736884,1739283079703,-2037.92,0.00011506,2]
[352736885,1739283079712,-2384.33,0.00011506,2]
[352736886,1739283079722,-1210.9,0.00011506,2]
[352736887,1739283079731,-3335.18,0.00011506,2]
[352736888,1739283079741,-2751.0,0.00011507,2]
[352736889,1739283079750,-150.0,0.00011533,2]
[352736890,1739283079760,-1366.0,0.00011533,2]
[352736891,1739283079769,-233.71141715,0.00011543,2]
[352736892,1739283079778,-150.0,0.00011561,2]
[352736893,1739283079787,-1366.0,0.00011561,2]
[352736894,1739283079797,-400.0,0.0001157,2]
[352736895,1739283079809,-221.239,0.00011588,2]
[352736896,1739283079818,-1366.0,0.00011588,2]
[352736897,1739283079828,-754.87574914,0.00011604,2]
[352736898,1739283079838,-202.0,0.0001161,2]
[352736899,1739283079847,-507.794811,0.00011612,2]
[352736900,1739283079856,-1366.0,0.00011616,2]
[352736901,1739283079865,-202.0,0.0001162,2]
[352736902,1739283079875,-4948.5091115,0.00011635,2]
[352736903,1739283079884,-1753.0944328,0.00011635,2]
[352736904,1739283079893,-3250.076618,0.00011635,2]
[352736905,1739283079903,-350.6188865,0.00011635,2]
[352736906,1739283079912,-2214.2608784,0.00011635,2]
[352736907,1739283079922,-567.8667856,0.00011635,2]
[352736908,1739283079931,-593.4315322,0.00011635,2]
[352736909,1739283079941,-571.4102626,0.00011635,2]
[352736910,1739283079950,-524.64,0.00011636,2]
[352736911,1739283079959,-151.0,0.00011637,2]
[352736912,1739283079969,-1114.15,0.00011637,2]
[352736913,1739283079978,-1907.79,0.00011637,2]
[352736914,1739283079987,-500.0,0.00011637,2]